fUSD/lending_fUSD_20241206
["ID","MTS","AMOUNT","RATE_DAILY","PERIOD"]
[344456510,1733494243551,-411.31332448,7.695e-05,2]
[344456511,1733494243561,-200.0,7.695e-05,2]
[344456512,1733494243571,-946.35380617,7.695e-05,2]
[344456513,1733494243581,-946.35380617,7.695e-05,2]
[344456514,1733494243590,-200.0,7.695e-05,2]
[344456515,1733494243600,-324.72236856,7.696e-05,2]
[344456516,1733494243612,-200.0,7.696e-05,2]
[344456517,1733494243626,-200.0,7.696e-05,2]
[344456518,1733494243635,-200.0,7.696e-05,2]
[344456519,1733494243645,-308.48499336,7.697e-05,2]
[344456520,1733494243655,-200.0,7.697e-05,2]
[344456521,1733494243666,-200.0,7.697e-05,2]
[344456522,1733494243676,-231.36374502,7.697e-05,2]
[344456523,1733494243685,-200.0,7.697e-05,2]
[344456524,1733494243697,-200.0,7.697e-05,2]
[344456525,1733494243708,-946.35380617,7.697e-05,2]
[344456526,1733494243720,-200.0,7.697e-05,2]
[344456527,1733494243729,-200.0,7.697e-05,2]
[344456528,1733494243739,-946.35380617,7.698e-05,2]
[344456529,1733494243750,-200.0,7.698e-05,2]
[344456530,1733494243760,-731.22368796,7.699e-05,2]
[344456531,1733494243770,-548.41776597,7.699e-05,2]
[344456532,1733494243779,-200.0,7.699e-05,2]
[344456533,1733494243790,-413.50676983,7.699e-05,2]
[344456534,1733494243800,-200.0,7.699e-05,2]
[344456535,1733494243810,-308.48499336,7.699e-05,2]
[344456536,1733494243820,-413.50676983,7.699e-05,2]
[344456537,1733494243831,-232.59755803,7.699e-05,2]
[344456538,1733494243843,-411.31332448,7.699e-05,2]
[344456539,1733494243854,-200.0,7.699e-05,2]
[344456540,1733494243863,-200.0,7.699e-05,2]
[344456541,1733494243872,-200.0,7.7e-05,2]
[344456542,1733494243884,-731.22368796,7.7e-05,2]
[344456543,1733494243894,-200.0,7.7e-05,2]
[344456544,1733494243903,-1682.40676653,7.7e-05,2]
[344456545,1733494243914,-731.22368796,7.7e-05,2]
[344456546,1733494243925,-420.0,7.704e-05,2]
[344456547,1733494243936,-255.0,7.705e-05,2]
[344456548,1733494243948,-310.252,7.732e-05,2]
[344456549,1733494243958,-1626.36,7.832e-05,2]
[344456550,1733494243967,-264.446,7.965e-05,2]
[344456551,1733494243978,-150.0,8.055e-05,2]
[344456552,1733494243988,-870.56,8.074e-05,2]
[344456553,1733494243998,-1500.0,8.174e-05,2]
[344456554,1733494244008,-1733.833587,8.178e-05,2]
[344456555,1733494244018,-10000.0,8.198e-05,2]
[344456556,1733494244028,-579.22299849,8.218e-05,2]
[344456557,1733494244038,-560.97,8.219e-05,2]
[344456558,1733494244047,-4285.68,8.219e-05,2]
[344456559,1733494244057,-1000.0,8.219e-05,2]
[344456560,1733494244066,-7384.49,8.219e-05,2]
[344456561,1733494244076,-886.092,8.26e-05,2]
[344456562,1733494244085,-163.14,8.411e-05,2]
[344456563,1733494244096,-150.0,8.411e-05,2]
[344456564,1733494244106,-150.0,8.411e-05,2]
[344456565,1733494244115,-150.0,8.411e-05,2]
[344456566,1733494244125,-300.0,8.411e-05,2]
[344456567,1733494244134,-587.0,8.474e-05,2]
[344456568,1733494244144,-433.0,8.476e-05,2]
[344456569,1733494244153,-166.68,8.5e-05,2]
[344456570,1733494244163,-500.0,8.548e-05,2]
[344456571,1733494244172,-500.0,8.548e-05,2]
[344456572,1733494244182,-954.6763968,8.57e-05,2]
[344456573,1733494244192,-1500.0,8.6e-05,3]
[344456574,1733494244201,-560.97,8.676e-05,2]
[344456575,1733494244210,-190.21282936,8.687e-05,2]
[344456576,1733494244220,-29636.20016537,8.688e-05,2]
[344456581,1733494245413,-5901.10526951,8.688e-05,2]
[344456582,1733494245434,-1140.40000033,8.688e-05,2]
[344456583,1733494245478,-985.82,8.688e-05,2]
[344456584,1733494246364,-3004.94808478,7.569e-05,2]
[344456585,1733494246379,-441.51856235,7.569e-05,2]
[344456586,1733494246416,-640.1449775,7.569e-05,2]
[344456587,1733494246471,-14899.91837537,7.569e-05,2]
[344456588,1733494246481,-62524.13485372,8.688e-05,2]
[344456589,1733494246493,-9502.606671,8.688e-05,2]
[344456593,1733494247297,-16584.83640185,8.688e-05,2]
[344456629,1733495431762,-329.56,6.849e-05,3]
[344456632,1733495431771,-336.7029876,6.86e-05,2]
[344456634,1733495431781,-250.0,6.86e-05,2]
[344456636,1733495431790,-4713.00724863,6.877e-05,2]
[344456640,1733495431817,-1057.94330853,6.877e-05,2]
[344456645,1733495432002,-15181.63944284,6.877e-05,2]
[344456646,1733495432013,-1147.17,6.881e-05,2]
[344456647,1733495432023,-250.0,6.893e-05,2]
[344456648,1733495432034,-250.0,6.909e-05,2]
[344456649,1733495432044,-988.02,6.911e-05,2]
[344456650,1733495432054,-150.0,6.986e-05,2]
[344456651,1733495432063,-477.66,6.987e-05,2]
[344456652,1733495432074,-509.12,7.002e-05,2]
[344456653,1733495432083,-503.0,7.044e-05,2]
[344456654,1733495432093,-490.6,7.053e-05,2]
[344456655,1733495432103,-501.84,7.142e-05,2]
[344456656,1733495432112,-427.11,7.195e-05,2]
[344456657,1733495432122,-504.91,7.219e-05,2]
[344456658,1733495432131,-495.36,7.239e-05,2]
[344456659,1733495432140,-499.34,7.277e-05,2]
[344456660,1733495432149,-150.0,7.313e-05,2]
[344456661,1733495432158,-490.35,7.349e-05,2]
[344456662,1733495432167,-491.28,7.349e-05,2]
[344456663,1733495432176,-507.15,7.407e-05,2]
[344456664,1733495432185,-503.55,7.528e-05,2]
[344456665,1733495432194,-499.1,7.536e-05,2]
[344456666,1733495432205,-492.75,7.548e-05,2]
[344456667,1733495432215,-503.06,7.565e-05,2]
[344456668,1733495432224,-627.48753435,7.588e-05,2]
[344456669,1733495432233,-150.0,7.588e-05,2]
[344456671,1733495432243,-507.1,7.604e-05,2]
[344456673,1733495432252,-496.25,7.604e-05,2]
[344456675,1733495432261,-505.6,7.604e-05,2]
[344456677,1733495432271,-319.2983004,7.604e-05,2]
[344456686,1733495432309,-184.3216996,7.604e-05,2]
[344456689,1733495432318,-2004.0,7.66e-05,2]
[344456691,1733495432328,-150.0,7.66e-05,2]
[344456693,1733495432337,-631.0,7.66e-05,2]
[344456695,1733495432346,-1893.0,7.66e-05,2]
[344456697,1733495432355,-563.0,7.66e-05,2]
[344456698,1733495432365,-3761.0,7.66e-05,2]
[344456699,1733495432374,-1252.0,7.66e-05,2]
[344456700,1733495432383,-816.0,7.66e-05,2]
[344456701,1733495432392,-3529.0,7.66e-05,2]
[344456702,1733495432401,-974.0,7.66e-05,2]
[344456703,1733495432410,-535.0,7.66e-05,2]
[344456704,1733495432421,-880.65,7.66e-05,2]
[344456705,1733495432430,-5964.0,7.66e-05,2]
[344456706,1733495432439,-567.0,7.66e-05,2]
[344456707,1733495432448,-150.0,7.66e-05,2]
[344456708,1733495432459,-151.0,7.66e-05,2]
[344456709,1733495432468,-1275.23405786,7.677e-05,2]
[344456710,1733495432478,-956.42554339,7.677e-05,2]
[344456711,1733495432487,-200.0,7.678e-05,2]
[344456712,1733495432496,-200.0,7.678e-05,2]
[344456713,1733495432506,-537.98936816,7.678e-05,2]
[344456714,1733495432516,-227.48157248,7.678e-05,2]
[344456715,1733495432526,-200.0,7.678e-05,2]
[344456716,1733495432536,-227.48157248,7.679e-05,2]
[344456717,1733495432545,-537.98936816,7.679e-05,2]
[344456718,1733495432554,-200.0,7.679e-05,2]
[344456719,1733495432563,-200.0,7.679e-05,2]
[344456720,1733495432572,-1275.23405786,7.679e-05,2]
[344456721,1733495432582,-200.0,7.68e-05,2]
[344456722,1733495432593,-200.0,7.68e-05,2]
[344456723,1733495432602,-227.48157248,7.68e-05,2]
[344456724,1733495432612,-200.0,7.68e-05,2]
[344456725,1733495432623,-303.3087633,7.681e-05,2]
[344456726,1733495432634,-303.3087633,7.681e-05,2]
[344456727,1733495432644,-956.42554339,7.681e-05,2]
[344456728,1733495432654,-956.42554339,7.681e-05,2]
[344456729,1733495432663,-200.0,7.681e-05,2]
[344456730,1733495432672,-717.31915755,7.681e-05,2]
[344456731,1733495432682,-200.0,7.682e-05,2]
[344456732,1733495432691,-717.31915755,7.682e-05,2]
[344456733,1733495432701,-200.0,7.682e-05,2]
[344456734,1733495432711,-303.3087633,7.682e-05,2]
[344456735,1733495432720,-1275.23405786,7.683e-05,2]
[344456736,1733495432730,-200.0,7.683e-05,2]
[344456737,1733495432741,-403.49202612,7.683e-05,2]
[344456738,1733495432752,-537.98936816,7.683e-05,2]
[344456739,1733495432762,-200.0,7.684e-05,2]
[344456740,1733495432772,-717.31915755,7.684e-05,2]
[344456741,1733495432782,-200.0,7.684e-05,2]
[344456742,1733495432792,-537.98936816,7.684e-05,2]
[344456743,1733495432802,-200.0,7.684e-05,2]
[344456744,1733495432811,-403.49202612,7.685e-05,2]
[344456745,1733495432821,-200.0,7.685e-05,2]
[344456746,1733495432830,-717.31915755,7.685e-05,2]
[344456747,1733495432839,-227.48157248,7.686e-05,2]
[344456748,1733495432850,-403.49202612,7.686e-05,2]
[344456749,1733495432860,-956.42554339,7.687e-05,2]
[344456750,1733495432869,-537.98936816,7.687e-05,2]
[344456751,1733495432879,-200.0,7.687e-05,2]
[344456752,1733495432888,-200.0,7.687e-05,2]
[344456753,1733495432897,-2595.83,7.688e-05,2]
[344456754,1733495432906,-193.889,7.688e-05,2]
[344456755,1733495432915,-956.42554339,7.689e-05,2]
[344456756,1733495432926,-1275.23405786,7.689e-05,2]
[344456757,1733495432937,-403.49202612,7.689e-05,2]
[344456758,1733495432948,-717.31915755,7.689e-05,2]
[344456759,1733495432961,-403.49202612,7.689e-05,2]
[344456760,1733495432973,-227.48157248,7.691e-05,2]
[344456761,1733495432982,-1275.23405786,7.693e-05,2]
[344456762,1733495432992,-537.98936816,7.693e-05,2]
[344456763,1733495433006,-956.42554339,7.693e-05,2]
[344456764,1733495433016,-200.0,7.693e-05,2]
[344456765,1733495433026,-227.48157248,7.694e-05,2]
[344456766,1733495433035,-303.3087633,7.695e-05,2]
[344456767,1733495433045,-1275.23405786,7.695e-05,2]
[344456768,1733495433055,-200.0,7.695e-05,2]
[344456769,1733495433065,-200.0,7.696e-05,2]
[344456770,1733495433075,-717.31915755,7.696e-05,2]
[344456771,1733495433085,-200.0,7.696e-05,2]
[344456772,1733495433095,-200.0,7.696e-05,2]
[344456773,1733495433104,-403.49202612,7.697e-05,2]
[344456774,1733495433113,-200.0,7.697e-05,2]
[344456775,1733495433123,-200.0,7.698e-05,2]
[344456776,1733495433132,-200.0,7.698e-05,2]
[344456777,1733495433142,-303.3087633,7.698e-05,2]
[344456778,1733495433152,-200.0,7.699e-05,2]
[344456779,1733495433161,-200.0,7.7e-05,2]
[344456780,1733495433171,-303.3087633,7.7e-05,2]
[344456781,1733495433181,-506.07,7.704e-05,2]
[344456782,1733495433190,-509.26,7.704e-05,2]
[344456783,1733495433200,-507.13,7.704e-05,2]
[344456784,1733495433212,-506.62,7.704e-05,2]
[344456785,1733495433221,-150.0,7.768e-05,2]
[344456786,1733495433230,-477.66,7.86e-05,2]
[344456787,1733495433240,-300.69,7.868e-05,2]
[344456788,1733495433249,-166.67,8.045e-05,2]
[344456789,1733495433258,-218.1233,8.06e-05,2]
[344456790,1733495433268,-435.5,8.082e-05,2]
[344456791,1733495433277,-435.5,8.082e-05,2]
[344456792,1733495433286,-768.15,8.082e-05,2]
[344456793,1733495433296,-236.12,8.082e-05,2]
[344456794,1733495433306,-150.0,8.135e-05,2]
[344456795,1733495433316,-150.0,8.135e-05,2]
[344456796,1733495433325,-150.0,8.135e-05,2]
[344456797,1733495433335,-150.0,8.158e-05,2]
[344456798,1733495433344,-6765.4074,8.16e-05,2]
[344456799,1733495433354,-2028.0399,8.16e-05,2]
[344456800,1733495433363,-448.77,8.219e-05,2]
[344456801,1733495433373,-3692.24,8.219e-05,2]
[344456802,1733495433382,-4071.39,8.219e-05,2]
[344456803,1733495433392,-1000.0,8.219e-05,2]
[344456804,1733495433401,-849.35,8.26e-05,2]
[344456805,1733495433411,-255.0,8.347e-05,2]
[344456806,1733495433420,-3851.358,8.487e-05,2]
[344456807,1733495433430,-310.252,8.488e-05,2]
[344456808,1733495433440,-2000.0,8.587e-05,2]
[344456809,1733495433450,-2000.0,8.587e-05,2]
[344456810,1733495433461,-13044.3706,8.587e-05,2]
[344456811,1733495433471,-2500.0,8.587e-05,2]
[344456812,1733495433480,-1296.16590284,8.588e-05,2]
[344456813,1733495433493,-13634.39929716,8.588e-05,2]
[344456814,1733495433503,-2832.5698,8.588e-05,2]
[344456815,1733495433512,-31706.9052,8.588e-05,2]
[344456816,1733495433521,-2500.0,8.588e-05,2]
[344456817,1733495433531,-4802.9261,8.588e-05,2]
[344456818,1733495433540,-1279.9561,8.588e-05,2]
[344456819,1733495433549,-627.48753434,8.588e-05,2]
[344456820,1733495433559,-154.81692885,8.588e-05,2]
[344456821,1733495433568,-1252.0,8.6e-05,2]
[344456822,1733495433577,-5688.65761755,8.601e-05,2]
[344456823,1733495433590,-17473.34238245,8.601e-05,2]
[344456824,1733495433600,-448.77,8.676e-05,2]
[344456825,1733495433609,-10837.43803497,8.687e-05,2]
[344456826,1733495433621,-33469.87255095,8.687e-05,2]
[344456827,1733495433631,-2000.0,8.687e-05,2]
[344456828,1733495433640,-2000.0,8.687e-05,2]
[344456829,1733495433650,-2000.0,8.687e-05,2]
[344456830,1733495433660,-824.0,8.688e-05,2]
[344456831,1733495433669,-66605.53281541,8.688e-05,2]
[344456832,1733495433678,-57032.08246986,8.688e-05,2]
[344456833,1733495433753,-477.45319107,8.688e-05,2]
[344456834,1733495433764,-2793.34476676,8.688e-05,2]
[344456851,1733495438377,-1262.0,7.66e-05,2]
[344456852,1733495438386,-727.26833443,8.688e-05,2]
[344456853,1733495438425,-12141.06145634,8.688e-05,2]
[344456854,1733495438437,-4422.410423,8.688e-05,2]
[344456855,1733495438448,-1985.12265137,8.688e-05,2]
[344456856,1733495438461,-1100.81192135,8.688e-05,2]
[344456863,1733495441090,-3817.66848359,8.688e-05,2]
[344456864,1733495441103,-2480.02993345,8.688e-05,2]
[344456865,1733495441114,-335.43127568,8.688e-05,2]
[344456866,1733495441125,-9582.5805,8.688e-05,2]
[344456871,1733495442761,-427.52913518,6.86e-05,2]
[344456872,1733495442773,-8138.15985856,6.86e-05,2]
[344456873,1733495442782,-1199.75444144,8.688e-05,2]
[344456874,1733495442794,-1926.6605848,8.688e-05,2]
[344456875,1733495442863,-529.90513464,8.688e-05,2]
[344456876,1733495442875,-3674.58199001,8.688e-05,2]
[344456877,1733495442886,-4219.37489605,8.688e-05,2]
[344456878,1733495442942,-3292.13645854,8.688e-05,2]
[344456879,1733495442999,-2489.67733337,8.688e-05,2]
[344456880,1733495443058,-17458.74889163,8.688e-05,2]
[344456881,1733495443069,-36436.13495985,8.688e-05,2]
[344456882,1733495443171,-8250.794301,8.688e-05,2]
[344456883,1733495443267,-7836.39999996,8.688e-05,2]
[344456884,1733495443280,-5914.75,8.688e-05,2]
[344456885,1733495443292,-1592.71533018,8.688e-05,2]
[344456886,1733495443303,-2384.33687328,8.688e-05,2]
[344456889,1733495445644,-79351.29136218,8.688e-05,2]
[344456890,1733495445672,-488.88,8.688e-05,2]
[344456891,1733495445703,-872.9,8.688e-05,2]
[344456892,1733495445718,-1158.946685,8.688e-05,2]
[344456893,1733495445745,-482.7265,8.688e-05,2]
[344456894,1733495445756,-3898.5,8.688e-05,2]
[344456895,1733495445767,-3956.84229608,8.688e-05,2]
[344456896,1733495445879,-49314.9999765,8.688e-05,2]
[344456897,1733495445892,-1860.5840813,8.688e-05,2]
[344456898,1733495445904,-9932.57276565,8.688e-05,2]
[344456899,1733495445951,-481.40144037,8.688e-05,2]
[344456900,1733495445965,-294.26222825,8.688e-05,2]
[344456901,1733495445998,-1871.11357563,8.688e-05,2]
[344456902,1733495446032,-9937.4,8.688e-05,2]
[344456940,1733495573918,1390.06,6.838e-05,30]
[344456942,1733495895780,285.8,0.00015,30]
[344457073,1733496510197,10000.0,0.0001501,29]
[344457089,1733496631909,-713.4,6.838e-05,2]
[344457090,1733496631919,-151.5453,6.98e-05,2]
[344457091,1733496631959,-98.4547,6.98e-05,2]
[344457092,1733496631969,-305.49,6.984e-05,2]
[344457093,1733496631978,-887.1641336,7.035e-05,2]
[344457094,1733496631990,-9914.0,7.035e-05,2]
[344457095,1733496632001,-7245.98701309,7.035e-05,2]
[344457096,1733496632013,-594.054,7.035e-05,2]
[344457097,1733496632067,-5258.79485331,7.035e-05,2]
[344457098,1733496632077,-159.29929669,7.083e-05,2]
[344457099,1733496632086,-179.27,7.083e-05,2]
[344457100,1733496632097,-586.46,7.108e-05,2]
[344457101,1733496632107,-150.0,7.151e-05,2]
[344457102,1733496632116,-624.07,7.168e-05,2]
[344457103,1733496632125,-164.71,7.172e-05,2]
[344457104,1733496632134,-611.98,7.186e-05,2]
[344457105,1733496632144,-250.0,7.265e-05,2]
[344457106,1733496632153,-150.0,7.265e-05,2]
[344457107,1733496632162,-250.0,7.352e-05,2]
[344457108,1733496632171,-220.49,7.536e-05,2]
[344457109,1733496632180,-200.0,7.68e-05,2]
[344457110,1733496632190,-200.0,7.681e-05,2]
[344457111,1733496632199,-200.0,7.681e-05,2]
[344457112,1733496632209,-205.05629771,7.682e-05,2]
[344457113,1733496632218,-200.0,7.683e-05,2]
[344457114,1733496632227,-200.0,7.683e-05,2]
[344457115,1733496632236,-200.0,7.683e-05,2]
[344457116,1733496632245,-200.0,7.684e-05,2]
[344457117,1733496632254,-200.0,7.685e-05,2]
[344457118,1733496632264,-200.0,7.686e-05,2]
[344457119,1733496632274,-200.0,7.686e-05,2]
[344457120,1733496632283,-205.05629771,7.686e-05,2]
[344457121,1733496632293,-200.0,7.687e-05,2]
[344457122,1733496632303,-200.0,7.687e-05,2]
[344457123,1733496632313,-200.0,7.687e-05,2]
[344457124,1733496632322,-200.0,7.691e-05,2]
[344457125,1733496632331,-205.05629771,7.692e-05,2]
[344457126,1733496632343,-713.4,7.693e-05,2]
[344457127,1733496632352,-200.0,7.693e-05,2]
[344457128,1733496632362,-200.0,7.694e-05,2]
[344457129,1733496632375,-205.05629771,7.694e-05,2]
[344457130,1733496632385,-200.0,7.694e-05,2]
[344457131,1733496632393,-200.0,7.694e-05,2]
[344457132,1733496632403,-200.0,7.695e-05,2]
[344457133,1733496632413,-200.0,7.696e-05,2]
[344457134,1733496632422,-205.05629771,7.696e-05,2]
[344457135,1733496632432,-200.0,7.696e-05,2]
[344457136,1733496632442,-200.0,7.697e-05,2]
[344457137,1733496632451,-200.0,7.698e-05,2]
[344457138,1733496632460,-200.0,7.698e-05,2]
[344457139,1733496632469,-200.0,7.699e-05,2]
[344457140,1733496632479,-200.0,7.699e-05,2]
[344457141,1733496632488,-205.05629771,7.7e-05,2]
[344457142,1733496632497,-3082.7943,7.729e-05,2]
[344457143,1733496632507,-150.0,7.828e-05,2]
[344457144,1733496632516,-2636.657,7.829e-05,2]
[344457145,1733496632526,-188.051,7.829e-05,2]
[344457146,1733496632535,-494.74,7.829e-05,2]
[344457147,1733496632546,-493.33,7.829e-05,2]
[344457148,1733496632555,-567.0,7.829e-05,2]
[344457149,1733496632565,-1262.0,7.829e-05,2]
[344457150,1733496632575,-150.0,7.829e-05,2]
[344457151,1733496632584,-631.0,7.829e-05,2]
[344457152,1733496632600,-2004.0,7.829e-05,2]
[344457153,1733496632609,-563.0,7.829e-05,2]
[344457154,1733496632619,-1893.0,7.829e-05,2]
[344457155,1733496632628,-1252.0,7.829e-05,2]
[344457156,1733496632637,-3761.0,7.829e-05,2]
[344457157,1733496632646,-816.0,7.829e-05,2]
[344457158,1733496632656,-535.0,7.829e-05,2]
[344457159,1733496632665,-3529.0,7.829e-05,2]
[344457160,1733496632675,-973.0,7.829e-05,2]
[344457161,1733496632684,-5964.0,7.829e-05,2]
[344457162,1733496632693,-150.0,7.829e-05,2]
[344457163,1733496632703,-292.54,7.945e-05,2]
[344457164,1733496632712,-166.66,8.051e-05,2]
[344457165,1733496632722,-499.99,8.058e-05,2]
[344457166,1733496632731,-999.99,8.058e-05,2]
[344457167,1733496632740,-9999.99,8.058e-05,2]
[344457168,1733496632750,-9999.99,8.058e-05,2]
[344457169,1733496632759,-150.99,8.058e-05,2]
[344457170,1733496632768,-150.99,8.058e-05,2]
[344457171,1733496632777,-299.99,8.058e-05,2]
[344457172,1733496632787,-150.0,8.185e-05,2]
[344457173,1733496632796,-166.96,8.199e-05,2]
[344457174,1733496632805,-359.01,8.219e-05,2]
[344457175,1733496632814,-3867.82,8.219e-05,2]
[344457176,1733496632823,-1846.12,8.219e-05,2]
[344457177,1733496632833,-1000.0,8.219e-05,2]
[344457178,1733496632848,-813.923,8.26e-05,2]
[344457179,1733496632857,-894.9306,8.488e-05,2]
[344457180,1733496632867,-734.92216374,8.488e-05,2]
[344457181,1733496632908,-1302.06923626,8.488e-05,2]
[344457182,1733496632917,-1000.0,8.488e-05,2]
[344457183,1733496632927,-2357.0,8.515e-05,2]
[344457184,1733496632936,-713.4,8.548e-05,2]
[344457185,1733496632945,-1829.52725787,8.587e-05,2]
[344457186,1733496632955,-798.309,8.588e-05,2]
[344457187,1733496632964,-24654.7846,8.588e-05,2]
[344457188,1733496632974,-9992.7293,8.588e-05,2]
[344457189,1733496632984,-4122.65,8.588e-05,2]
[344457190,1733496632993,-67856.31603116,8.588e-05,2]
[344457191,1733496633005,-39277.79206884,8.588e-05,2]
[344457192,1733496633015,-10056.7807,8.588e-05,2]
[344457193,1733496633024,-511.9752,8.588e-05,2]
[344457194,1733496633034,-22018.2185,8.588e-05,2]
[344457195,1733496633044,-6368.7821,8.588e-05,2]
[344457196,1733496633054,-4147.1492,8.588e-05,2]
[344457197,1733496633065,-1480.8665,8.588e-05,2]
[344457198,1733496633075,-179.4375,8.588e-05,2]
[344457199,1733496633084,-90663.0467,8.588e-05,2]
[344457200,1733496633098,-115294.23112045,8.588e-05,2]
[344457201,1733496633109,-113634.19567955,8.588e-05,2]
[344457202,1733496633119,-2500.0,8.588e-05,2]
[344457203,1733496633128,-156.65496253,8.588e-05,2]
[344457204,1733496633138,-255.0,8.611e-05,2]
[344457205,1733496633147,-359.01,8.676e-05,2]
[344457206,1733496633157,-1000.0,8.687e-05,2]
[344457207,1733496633167,-860.0,8.688e-05,2]
[344457208,1733496633178,-335388.40179601,8.688e-05,2]
[344457209,1733496633190,-22398.41200605,8.688e-05,2]
[344457210,1733496633201,-78700.00002325,8.688e-05,2]
[344457213,1733496633249,-13014.32409853,8.688e-05,2]
[344457215,1733496633258,-19905.48712987,8.699e-05,5]
[344457219,1733496633286,-5206.56287013,8.699e-05,5]
[344457221,1733496633295,-4630.83550241,8.699e-05,5]
[344457223,1733496633306,-53594.42449759,8.699e-05,5]
[344457225,1733496633315,-34447.94,8.699e-05,5]
[344457227,1733496633324,-17407.9882779,8.727e-05,2]
[344457229,1733496633333,-1968.521231,8.727e-05,2]
[344457231,1733496633345,-477.66,8.733e-05,2]
[344457233,1733496633355,-200.0,8.74e-05,2]
[344457235,1733496633367,-8281.0,8.767e-05,2]
[344457237,1733496633378,-382.0,8.767e-05,2]
[344457238,1733496633387,-24004.13,8.767e-05,2]
[344457239,1733496633396,-1000.0,8.8e-05,2]
[344457240,1733496633405,-156.6549625,8.838e-05,2]
[344457241,1733496633416,-150.0,8.84e-05,5]
[344457242,1733496633427,-239.66743376,8.853e-05,5]
[344457243,1733496633436,-427.92909059,8.871e-05,2]
[344457244,1733496633446,-2000.0,8.9e-05,3]
[344457245,1733496633456,-625.0,8.93e-05,2]
[344457246,1733496633466,-7169.31383107,8.999e-05,2]
[344457247,1733496633475,-10000.0,9e-05,2]
[344457248,1733496633485,-10073.75369142,9e-05,2]
[344457249,1733496633495,-162813.19082273,9e-05,2]
[344457250,1733496633504,-28000.0,9e-05,2]
[344457251,1733496633513,-4494.52342922,9e-05,2]
[344457252,1733496633523,-300.0,9e-05,2]
[344457253,1733496633532,-360.964439,9e-05,2]
[344457254,1733496633542,-360.964439,9e-05,2]
[344457255,1733496633552,-151.0,9e-05,2]
[344457256,1733496633561,-151.0,9e-05,2]
[344457257,1733496633571,-4000.0,9e-05,3]
[344457258,1733496633582,-153.0,9.003e-05,2]
[344457259,1733496633597,-153.0,9.003e-05,2]
[344457260,1733496633606,-156.6549625,9.089e-05,2]
[344457261,1733496633616,-1419.15015662,9.1e-05,2]
[344457262,1733496633626,-359.01,9.132e-05,2]
[344457263,1733496633635,-427.92909059,9.202e-05,2]
[344457264,1733496633646,-1000.0,9.247e-05,2]
[344457265,1733496633655,-296.0,9.27e-05,2]
[344457266,1733496633665,-258.13,9.289e-05,5]
[344457267,1733496633674,-1096.58,9.289e-05,5]
[344457268,1733496633684,-40547.36,9.289e-05,5]
[344457269,1733496633694,-32263.45,9.289e-05,5]
[344457270,1733496633704,-34926.01,9.289e-05,5]
[344457271,1733496633714,-27028.17,9.289e-05,5]
[344457272,1733496633724,-156.6549625,9.339e-05,2]
[344457273,1733496633733,-166.67,9.373e-05,2]
[344457274,1733496633743,-8545.84112947,9.389e-05,2]
[344457275,1733496633752,-28469.23246612,9.389e-05,2]
[344457276,1733496633762,-471.65381147,9.389e-05,2]
[344457277,1733496633771,-427.92909059,9.394e-05,2]
[344457278,1733496633781,-713.4,9.402e-05,2]
[344457279,1733496633791,-166.96,9.552e-05,2]
[344457280,1733496633800,-21380.0,9.562e-05,2]
[344457281,1733496633810,-22221.0,9.562e-05,2]
[344457282,1733496633820,-387.98447021,9.563e-05,2]
[344457283,1733496633830,-500.0,9.563e-05,2]
[344457284,1733496633841,-500.0,9.563e-05,2]
[344457285,1733496633851,-201.94019664,9.563e-05,2]
[344457286,1733496633861,-500.0,9.563e-05,2]
[344457287,1733496633872,-500.0,9.563e-05,2]
[344457288,1733496633883,-16374.61961373,9.58e-05,2]
[344457289,1733496633893,-41988.0,9.588e-05,2]
[344457290,1733496633903,-364.13,9.588e-05,2]
[344457291,1733496633913,-360.964439,9.588e-05,2]
[344457292,1733496633923,-360.964439,9.588e-05,2]
[344457293,1733496633932,-2000.0,9.588e-05,2]
[344457294,1733496633942,-2000.0,9.588e-05,2]
[344457295,1733496633952,-2000.0,9.588e-05,2]
[344457296,1733496633962,-2000.0,9.588e-05,2]
[344457297,1733496633971,-2000.0,9.588e-05,2]
[344457298,1733496633981,-2000.0,9.588e-05,2]
[344457299,1733496633991,-151.0,9.588e-05,2]
[344457300,1733496634001,-151.0,9.588e-05,2]
[344457301,1733496634011,-840.87,9.588e-05,2]
[344457302,1733496634256,-297.67104132,9.588e-05,2]
[344457303,1733496634337,-500.0,9.589e-05,2]
[344457304,1733496634352,-500.0,9.589e-05,2]
[344457305,1733496634364,-500.0,9.589e-05,2]
[344457306,1733496634375,-500.0,9.589e-05,2]